fUST/lending_fUST_20250212
["ID","MTS","AMOUNT","RATE_DAILY","PERIOD"]
[352827957,1739352644402,-500.0,0.00012682,2]
[352827958,1739352644411,-500.0,0.00012682,2]
[352827959,1739352644420,-500.0,0.00012682,2]
[352827960,1739352644430,-500.0,0.00012818,2]
[352827961,1739352644439,-500.0,0.00012818,2]
[352827962,1739352644450,-500.0,0.00012818,2]
[352827963,1739352644459,-738.13,0.00012818,2]
[352827964,1739352644469,-500.0,0.00012818,2]
[352827965,1739352644479,-361.02,0.00012818,2]
[352827966,1739352644489,-500.0,0.00012818,2]
[352827967,1739352644498,-730.78,0.00012818,2]
[352827968,1739352644508,-500.0,0.00012818,2]
[352827969,1739352644517,-416.59697063,0.00012818,2]
[352827970,1739352644528,-205.24302937,0.00012818,2]
[352827971,1739352644538,-500.0,0.00012818,2]
[352827972,1739352644547,-500.0,0.00012818,2]
[352827973,1739352644558,-500.0,0.00012818,2]
[352827974,1739352644567,-657.68,0.00012818,2]
[352827975,1739352644577,-500.0,0.00012818,2]
[352827976,1739352644587,-500.0,0.00012818,2]
[352827977,1739352644597,-500.0,0.00012818,2]
[352827978,1739352644607,-232.1578468,0.00012819,2]
[352827979,1739352644617,-500.0,0.00012819,2]
[352827980,1739352644627,-500.0,0.00012819,2]
[352827981,1739352644637,-670.67,0.00012819,2]
[352827982,1739352644646,-598.75702315,0.00012819,2]
[352827983,1739352644655,-500.0,0.00012819,2]
[352827984,1739352644665,-529.47,0.00012819,2]
[352827985,1739352644674,-500.0,0.00012819,2]
[352827986,1739352644683,-500.0,0.00012819,2]
[352827987,1739352644693,-500.0,0.00012819,2]
[352827988,1739352644702,-500.0,0.00012819,2]
[352827989,1739352644711,-500.0,0.00012819,2]
[352827990,1739352644721,-500.0,0.00012819,2]
[352827991,1739352644730,-500.0,0.00012819,2]
[352827992,1739352644739,-500.0,0.00012819,2]
[352827993,1739352644749,-500.0,0.00012819,2]
[352827994,1739352644759,-500.0,0.00012819,2]
[352827995,1739352644768,-500.0,0.00012819,2]
[352827996,1739352644778,-500.0,0.00012819,2]
[352827997,1739352644787,-219.64712831,0.00012819,2]
[352827998,1739352644797,-500.0,0.00012819,2]
[352827999,1739352644808,-372.64403976,0.00012819,2]
[352828000,1739352644818,-500.0,0.00012819,2]
[352828001,1739352644827,-663.91,0.00012819,2]
[352828002,1739352644836,-500.0,0.00012819,2]
[352828003,1739352644846,-500.0,0.00012819,2]
[352828004,1739352644855,-500.0,0.00012819,2]
[352828005,1739352644865,-540.03,0.00012819,2]
[352828006,1739352644874,-500.0,0.00012819,2]
[352828007,1739352644884,-500.0,0.00012819,2]
[352828008,1739352644894,-155.25728796,0.00012819,2]
[352828009,1739352644904,-500.0,0.00012819,2]
[352828010,1739352644914,-500.0,0.00012819,2]
[352828011,1739352644928,-500.0,0.00012819,2]
[352828012,1739352644937,-492.50985248,0.00012819,2]
[352828013,1739352644946,-4408.0,0.00012819,2]
[352828014,1739352644958,-1527.94,0.00012819,2]
[352828015,1739352644967,-500.0,0.00012819,2]
[352828016,1739352644977,-500.0,0.00012819,2]
[352828017,1739352644986,-14497.69,0.00012819,2]
[352828018,1739352644997,-817.76,0.00012819,2]
[352828019,1739352645007,-500.0,0.00012819,2]
[352828020,1739352645017,-500.0,0.00012819,2]
[352828021,1739352645027,-500.0,0.00012819,2]
[352828022,1739352645037,-520.66,0.00012819,2]
[352828023,1739352645047,-6019.09,0.00012819,2]
[352828024,1739352645060,-652.9,0.00012819,2]
[352828025,1739352645069,-834.72,0.00012819,2]
[352828026,1739352645079,-500.0,0.00012819,2]
[352828027,1739352645089,-500.6227581,0.0001288,2]
[352828028,1739352645098,-178.54447104,0.000129,2]
[352828029,1739352645108,-500.0,0.00012955,2]
[352828030,1739352645118,-500.0,0.00012955,2]
[352828031,1739352645128,-738.13,0.00012955,2]
[352828032,1739352645137,-500.0,0.00012955,2]
[352828033,1739352645147,-500.0,0.00012955,2]
[352828034,1739352645156,-500.0,0.00012955,2]
[352828035,1739352645166,-730.78,0.00012955,2]
[352828036,1739352645175,-500.0,0.00012955,2]
[352828037,1739352645185,-621.84,0.00012955,2]
[352828038,1739352645194,-500.0,0.00012955,2]
[352828039,1739352645205,-500.0,0.00012955,2]
[352828040,1739352645215,-500.0,0.00012955,2]
[352828041,1739352645224,-657.68,0.00012955,2]
[352828042,1739352645235,-500.0,0.00012955,2]
[352828043,1739352645358,-500.0,0.00012956,2]
[352828044,1739352645368,-500.0,0.00012956,2]
[352828045,1739352645378,-670.67,0.00012956,2]
[352828046,1739352645387,-321.58,0.00012956,2]
[352828047,1739352645397,-529.47,0.00012956,2]
[352828048,1739352645406,-500.0,0.00012956,2]
[352828049,1739352645416,-500.0,0.00012956,2]
[352828050,1739352645425,-500.0,0.00012956,2]
[352828051,1739352645434,-500.0,0.00012956,2]
[352828052,1739352645446,-500.0,0.00012956,2]
[352828053,1739352645455,-500.0,0.00012956,2]
[352828054,1739352645464,-500.0,0.00012956,2]
[352828055,1739352645473,-500.0,0.00012956,2]
[352828056,1739352645482,-231.59272626,0.00012956,2]
[352828057,1739352645492,-276.4194998,0.00012956,2]
[352828058,1739352645502,-500.0,0.00012956,2]
[352828059,1739352645511,-500.0,0.00012956,2]
[352828060,1739352645521,-663.91,0.00012956,2]
[352828061,1739352645530,-500.0,0.00012956,2]
[352828062,1739352645539,-500.0,0.00012956,2]
[352828063,1739352645549,-540.03,0.00012956,2]
[352828064,1739352645559,-500.0,0.00012956,2]
[352828065,1739352645568,-500.0,0.00012956,2]
[352828066,1739352645577,-500.0,0.00012956,2]
[352828067,1739352645587,-500.0,0.00012956,2]
[352828068,1739352645597,-4408.0,0.00012956,2]
[352828069,1739352645606,-1527.94,0.00012956,2]
[352828070,1739352645616,-500.0,0.00012956,2]
[352828071,1739352645625,-500.0,0.00012956,2]
[352828072,1739352645635,-14497.69,0.00012956,2]
[352828073,1739352645644,-817.76,0.00012956,2]
[352828074,1739352645653,-500.0,0.00012956,2]
[352828075,1739352645663,-500.0,0.00012956,2]
[352828076,1739352645672,-520.66,0.00012956,2]
[352828077,1739352645681,-6019.09,0.00012956,2]
[352828078,1739352645691,-652.9,0.00012956,2]
[352828079,1739352645700,-834.72,0.00012956,2]
[352828080,1739352645709,-626.94,0.00012956,2]
[352828081,1739352645718,-411.6878396,0.00013026,2]
[352828082,1739352645727,-500.0,0.0001308,2]
[352828083,1739352645736,-500.0,0.00013092,2]
[352828084,1739352645746,-500.0,0.00013092,2]
[352828085,1739352645755,-738.13,0.00013092,2]
[352828086,1739352645764,-290.7,0.00013092,2]
[352828087,1739352645773,-500.0,0.00013092,2]
[352828088,1739352645783,-500.0,0.00013092,2]
[352828089,1739352645792,-730.78,0.00013092,2]
[352828090,1739352645802,-500.0,0.00013092,2]
[352828091,1739352645811,-621.84,0.00013092,2]
[352828092,1739352645820,-298.46,0.00013092,2]
[352828093,1739352645830,-500.0,0.00013092,2]
[352828094,1739352645839,-500.0,0.00013092,2]
[352828095,1739352645848,-657.68,0.00013092,2]
[352828096,1739352645858,-500.0,0.00013092,2]
[352828097,1739352645867,-500.0,0.00013093,2]
[352828098,1739352645877,-500.0,0.00013093,2]
[352828099,1739352645887,-670.67,0.00013093,2]
[352828100,1739352645896,-529.47,0.00013093,2]
[352828101,1739352645906,-172.82,0.00013093,2]
[352828102,1739352645920,-238.1,0.00013093,2]
[352828103,1739352645929,-500.0,0.00013093,2]
[352828104,1739352645940,-500.0,0.00013093,2]
[352828105,1739352645950,-500.0,0.00013093,2]
[352828106,1739352645960,-500.0,0.00013093,2]
[352828107,1739352645969,-663.91,0.00013093,2]
[352828108,1739352645979,-500.0,0.00013093,2]
[352828109,1739352645990,-540.03,0.00013093,2]
[352828110,1739352645999,-500.0,0.00013093,2]
[352828111,1739352646009,-500.0,0.00013093,2]
[352828112,1739352646019,-500.0,0.00013093,2]
[352828113,1739352646029,-500.0,0.00013093,2]
[352828114,1739352646038,-4408.0,0.00013093,2]
[352828115,1739352646048,-1527.94,0.00013093,2]
[352828116,1739352646058,-500.0,0.00013093,2]
[352828117,1739352646068,-500.0,0.00013093,2]
[352828118,1739352646077,-14497.69,0.00013093,2]
[352828119,1739352646086,-817.76,0.00013093,2]
[352828120,1739352646096,-393.34371265,0.00013093,2]
[352828121,1739352646106,-500.0,0.00013093,2]
[352828122,1739352646115,-520.66,0.00013093,2]
[352828123,1739352646125,-6019.09,0.00013093,2]
[352828124,1739352646134,-652.9,0.00013093,2]
[352828125,1739352646143,-834.72,0.00013093,2]
[352828126,1739352646153,-1000.0,0.00013115,2]
[352828127,1739352646162,-500.0,0.00013229,2]
[352828128,1739352646171,-500.0,0.00013229,2]
[352828130,1739352646181,-738.13,0.00013229,2]
[352828131,1739352646192,-533.85,0.00013229,2]
[352828132,1739352646201,-500.0,0.00013229,2]
[352828133,1739352646211,-730.78,0.00013229,2]
[352828134,1739352646221,-500.0,0.00013229,2]
[352828135,1739352646231,-621.84,0.00013229,2]
[352828136,1739352646240,-500.0,0.00013229,2]
[352828137,1739352646250,-182.62,0.00013229,2]
[352828138,1739352646259,-657.68,0.00013229,2]
[352828139,1739352646268,-500.0,0.00013229,2]
[352828140,1739352646278,-500.0,0.0001323,2]
[352828141,1739352646287,-500.0,0.0001323,2]
[352828142,1739352646297,-670.67,0.0001323,2]
[352828143,1739352646307,-529.47,0.0001323,2]
[352828144,1739352646317,-500.0,0.0001323,2]
[352828145,1739352646327,-500.0,0.0001323,2]
[352828146,1739352646336,-500.0,0.0001323,2]
[352828147,1739352646346,-500.0,0.0001323,2]
[352828148,1739352646356,-663.91,0.0001323,2]
[352828149,1739352646365,-500.0,0.0001323,2]
[352828150,1739352646375,-540.03,0.0001323,2]
[352828151,1739352646384,-500.0,0.0001323,2]
[352828152,1739352646394,-500.0,0.0001323,2]
[352828154,1739352646403,-500.0,0.0001323,2]
[352828155,1739352646413,-500.0,0.0001323,2]
[352828156,1739352646422,-4408.0,0.0001323,2]
[352828157,1739352646431,-1527.94,0.0001323,2]
[352828158,1739352646441,-500.0,0.0001323,2]
[352828159,1739352646450,-500.0,0.0001323,2]
[352828160,1739352646459,-14497.69,0.0001323,2]
[352828161,1739352646469,-817.76,0.0001323,2]
[352828162,1739352646478,-500.0,0.0001323,2]
[352828163,1739352646488,-520.66,0.0001323,2]
[352828164,1739352646497,-6019.09,0.0001323,2]
[352828165,1739352646507,-652.9,0.0001323,2]
[352828166,1739352646516,-834.72,0.0001323,2]
[352828167,1739352646525,-500.0,0.00013366,2]
[352828168,1739352646535,-500.0,0.00013366,2]
[352828169,1739352646544,-738.13,0.00013366,2]
[352828170,1739352646554,-500.0,0.00013366,2]
[352828171,1739352646563,-730.78,0.00013366,2]
[352828172,1739352646573,-500.0,0.00013366,2]
[352828173,1739352646585,-621.84,0.00013366,2]
[352828174,1739352646595,-500.0,0.00013366,2]
[352828175,1739352646604,-657.68,0.00013366,2]
[352828176,1739352646614,-500.0,0.00013366,2]
[352828177,1739352646624,-500.0,0.00013367,2]
[352828178,1739352646634,-500.0,0.00013367,2]
[352828179,1739352646643,-670.67,0.00013367,2]
[352828180,1739352646653,-529.47,0.00013367,2]
[352828181,1739352646663,-500.0,0.00013367,2]
[352828182,1739352646673,-256.03,0.00013367,2]
[352828183,1739352646682,-476.86,0.00013367,2]
[352828184,1739352646692,-500.0,0.00013367,2]
[352828185,1739352646702,-663.91,0.00013367,2]
[352828186,1739352646712,-500.0,0.00013367,2]
[352828187,1739352646721,-540.03,0.00013367,2]
[352828188,1739352646731,-310.79190154,0.00013367,2]
[352828189,1739352646741,-647.78,0.00013367,2]
[352828190,1739352646751,-500.0,0.00013367,2]
[352828191,1739352646761,-500.0,0.00013367,2]
[352828192,1739352646770,-4408.0,0.00013367,2]
[352828193,1739352646781,-1527.94,0.00013367,2]
[352828194,1739352646791,-332.24,0.00013367,2]
[352828195,1739352646802,-500.0,0.00013367,2]
[352828196,1739352646812,-14497.69,0.00013367,2]
[352828197,1739352646821,-817.76,0.00013367,2]
[352828198,1739352646831,-500.0,0.00013367,2]
[352828199,1739352646841,-520.66,0.00013367,2]
[352828200,1739352646851,-6019.09,0.00013367,2]
[352828201,1739352646862,-652.9,0.00013367,2]
[352828202,1739352646872,-834.72,0.00013367,2]
[352828203,1739352646882,-9066.70543557,0.000135,2]
[352828204,1739352646893,-500.0,0.00013503,2]
[352828205,1739352646903,-500.0,0.00013503,2]
[352828206,1739352646913,-738.13,0.00013503,2]
[352828207,1739352646928,-500.0,0.00013503,2]
[352828208,1739352646938,-730.78,0.00013503,2]
[352828209,1739352646948,-500.0,0.00013503,2]
[352828210,1739352646958,-621.84,0.00013503,2]
[352828211,1739352646968,-500.0,0.00013503,2]
[352828212,1739352646978,-657.68,0.00013503,2]
[352828213,1739352646987,-639.25775914,0.00013503,2]
[352828214,1739352646997,-500.0,0.00013504,2]
[352828215,1739352647007,-500.0,0.00013504,2]
[352828216,1739352647017,-670.67,0.00013504,2]
[352828217,1739352647026,-529.47,0.00013504,2]
[352828218,1739352647035,-500.0,0.00013504,2]
[352828219,1739352647045,-500.0,0.00013504,2]
[352828220,1739352647055,-663.91,0.00013504,2]
[352828221,1739352647065,-231.56000001,0.00013504,2]
[352828222,1739352647074,-540.03,0.00013504,2]
[352828223,1739352647084,-500.0,0.00013504,2]
[352828224,1739352647094,-500.0,0.00013504,2]
[352828225,1739352647104,-4408.0,0.00013504,2]
[352828226,1739352647113,-1527.94,0.00013504,2]
[352828227,1739352647123,-500.0,0.00013504,2]
[352828228,1739352647133,-14497.69,0.00013504,2]
[352828229,1739352647142,-817.76,0.00013504,2]
[352828230,1739352647152,-500.0,0.00013504,2]
[352828231,1739352647161,-520.66,0.00013504,2]
[352828232,1739352647171,-6019.09,0.00013504,2]
[352828233,1739352647180,-652.9,0.00013504,2]
[352828234,1739352647190,-834.72,0.00013504,2]
[352828235,1739352647199,-178.54447102,0.00013583,2]
[352828236,1739352647209,-500.0,0.0001364,2]
[352828237,1739352647218,-500.0,0.0001364,2]
[352828238,1739352647228,-738.13,0.0001364,2]
[352828239,1739352647237,-500.0,0.0001364,2]
[352828240,1739352647246,-730.78,0.0001364,2]
[352828241,1739352647256,-500.0,0.0001364,2]
[352828242,1739352647265,-621.84,0.0001364,2]
[352828243,1739352647274,-500.0,0.0001364,2]
[352828244,1739352647283,-657.68,0.0001364,2]
[352828245,1739352647293,-500.0,0.00013641,2]
[352828246,1739352647302,-500.0,0.00013641,2]
[352828247,1739352647311,-670.67,0.00013641,2]
[352828248,1739352647321,-529.47,0.00013641,2]
[352828249,1739352647331,-500.0,0.00013641,2]
[352828250,1739352647340,-458.56,0.00013641,2]
[352828251,1739352647350,-663.91,0.00013641,2]
[352828252,1739352647360,-540.03,0.00013641,2]
[352828253,1739352647370,-500.0,0.00013641,2]
[352828254,1739352647379,-500.0,0.00013641,2]
[352828255,1739352647389,-4408.0,0.00013641,2]
[352828256,1739352647399,-1527.94,0.00013641,2]
[352828257,1739352647408,-500.0,0.00013641,2]
[352828258,1739352647420,-14497.69,0.00013641,2]
[352828259,1739352647430,-817.76,0.00013641,2]
[352828260,1739352647441,-500.0,0.00013641,2]
[352828261,1739352647451,-520.66,0.00013641,2]
[352828262,1739352647460,-6019.09,0.00013641,2]
[352828263,1739352647470,-652.9,0.00013641,2]
[352828264,1739352647479,-834.72,0.00013641,2]
[352828265,1739352647489,-583.284614,0.00013699,2]
[352828266,1739352647499,-736.910822,0.00013699,2]
[352828267,1739352647509,-151.580436,0.00013699,2]
[352828268,1739352647518,-213.052662,0.00013699,2]
[352828269,1739352647527,-151.0,0.00013699,2]
[352828270,1739352647537,-151.0,0.00013699,2]
[352828271,1739352647546,-500.0,0.00013699,2]
[352828272,1739352647555,-500.0,0.00013699,2]
[352828273,1739352647563,-500.0,0.00013699,2]
[352828274,1739352647573,-500.0,0.00013699,2]
[352828275,1739352647582,-500.0,0.00013699,2]
[352828276,1739352647591,-500.0,0.00013699,2]
[352828277,1739352647600,-500.0,0.00013699,2]
[352828278,1739352647609,-500.0,0.00013699,2]
[352828279,1739352647618,-500.0,0.00013699,2]
[352828280,1739352647627,-500.0,0.00013699,2]
[352828281,1739352647636,-500.0,0.00013699,2]
[352828282,1739352647645,-270.96689458,0.00013699,2]
[352828283,1739352647655,-500.0,0.00013699,2]
[352828284,1739352647664,-500.0,0.00013699,2]
[352828285,1739352647675,-500.0,0.00013699,2]
[352828286,1739352647685,-500.0,0.00013699,2]
[352828287,1739352647695,-500.0,0.00013699,2]
[352828288,1739352647704,-500.0,0.00013699,2]
[352828289,1739352647713,-500.0,0.00013699,2]
[352828290,1739352647723,-500.0,0.00013699,2]
[352828291,1739352647733,-500.0,0.00013699,2]
[352828292,1739352647743,-500.0,0.00013699,2]
[352828293,1739352647754,-500.0,0.00013699,2]
[352828294,1739352647763,-500.0,0.00013699,2]
[352828295,1739352647773,-500.0,0.00013699,2]
[352828296,1739352647782,-500.0,0.00013699,2]
[352828297,1739352647792,-500.0,0.00013699,2]
[352828298,1739352647802,-500.0,0.00013699,2]
[352828299,1739352647811,-500.0,0.00013699,2]
[352828300,1739352647820,-500.0,0.00013699,2]
[352828301,1739352647829,-500.0,0.00013699,2]
[352828302,1739352647838,-500.0,0.00013699,2]
[352828303,1739352647847,-500.0,0.00013699,2]
[352828304,1739352647856,-500.0,0.00013699,2]
[352828305,1739352647865,-500.0,0.00013699,2]
[352828306,1739352647875,-500.0,0.00013699,2]
[352828307,1739352647886,-500.0,0.00013699,2]
[352828308,1739352647896,-500.0,0.00013699,2]
[352828309,1739352647906,-500.0,0.00013699,2]
[352828310,1739352647920,-500.0,0.00013699,2]
[352828311,1739352648030,-500.0,0.00013699,2]
[352828312,1739352648041,-500.0,0.00013699,2]
[352828313,1739352648052,-500.0,0.00013699,2]
[352828314,1739352648062,-500.0,0.00013699,2]
[352828315,1739352648073,-500.0,0.00013699,2]
[352828316,1739352648084,-500.0,0.00013777,2]
[352828317,1739352648094,-500.0,0.00013777,2]
[352828318,1739352648104,-738.13,0.00013777,2]
[352828319,1739352648115,-500.0,0.00013777,2]
[352828320,1739352648128,-730.78,0.00013777,2]
[352828321,1739352648143,-500.0,0.00013777,2]
[352828322,1739352648158,-621.84,0.00013777,2]
[352828323,1739352648168,-500.0,0.00013777,2]
[352828324,1739352648178,-657.68,0.00013777,2]
[352828325,1739352648188,-500.0,0.00013778,2]
[352828326,1739352648198,-500.0,0.00013778,2]
[352828327,1739352648207,-670.67,0.00013778,2]
[352828328,1739352648218,-529.47,0.00013778,2]
[352828329,1739352648228,-500.0,0.00013778,2]
[352828330,1739352648237,-663.91,0.00013778,2]
[352828331,1739352648247,-540.03,0.00013778,2]
[352828332,1739352648257,-569.08,0.00013778,2]
[352828333,1739352648271,-465.84,0.00013778,2]
[352828334,1739352648281,-4408.0,0.00013778,2]
[352828335,1739352648291,-1527.94,0.00013778,2]
[352828336,1739352648301,-500.0,0.00013778,2]
[352828337,1739352648310,-14497.69,0.00013778,2]
[352828338,1739352648320,-817.76,0.00013778,2]
[352828339,1739352648332,-500.0,0.00013778,2]
[352828340,1739352648341,-520.66,0.00013778,2]
[352828341,1739352648352,-6019.09,0.00013778,2]
[352828342,1739352648362,-652.9,0.00013778,2]
[352828343,1739352648372,-834.72,0.00013778,2]
[352828344,1739352648382,-500.0,0.00013914,2]
[352828345,1739352648394,-325.28,0.00013914,2]
[352828346,1739352648405,-738.13,0.00013914,2]
[352828347,1739352648415,-500.0,0.00013914,2]
[352828348,1739352648426,-730.78,0.00013914,2]
[352828349,1739352648436,-500.0,0.00013914,2]
[352828350,1739352648446,-621.84,0.00013914,2]
[352828351,1739352648456,-446.5,0.00013914,2]
[352828352,1739352648466,-657.68,0.00013914,2]
[352828353,1739352648476,-500.0,0.00013915,2]
[352828354,1739352648485,-500.0,0.00013915,2]
[352828355,1739352648494,-670.67,0.00013915,2]
[352828356,1739352648503,-529.47,0.00013915,2]
[352828357,1739352648513,-500.0,0.00013915,2]
[352828358,1739352648522,-663.91,0.00013915,2]
[352828359,1739352648531,-540.03,0.00013915,2]
[352828360,1739352648541,-4408.0,0.00013915,2]
[352828361,1739352648553,-1527.94,0.00013915,2]
[352828362,1739352648564,-500.0,0.00013915,2]
[352828363,1739352648573,-14497.69,0.00013915,2]
[352828364,1739352648584,-817.76,0.00013915,2]
[352828365,1739352648594,-500.0,0.00013915,2]
[352828366,1739352648604,-520.66,0.00013915,2]
[352828367,1739352648614,-6019.09,0.00013915,2]
[352828368,1739352648624,-652.9,0.00013915,2]
[352828369,1739352648634,-834.72,0.00013915,2]
[352828370,1739352648645,-227.238,0.00013988,2]
[352828371,1739352648655,-500.0,0.00014051,2]
[352828372,1739352648664,-738.13,0.00014051,2]
[352828373,1739352648674,-500.0,0.00014051,2]
[352828374,1739352648684,-730.78,0.00014051,2]
[352828375,1739352648694,-500.0,0.00014051,2]
[352828376,1739352648704,-621.84,0.00014051,2]
[352828377,1739352648713,-657.68,0.00014051,2]
[352828378,1739352648723,-500.0,0.00014052,2]
[352828379,1739352648732,-500.0,0.00014052,2]
[352828380,1739352648742,-670.67,0.00014052,2]
[352828381,1739352648752,-529.47,0.00014052,2]
[352828382,1739352648764,-500.0,0.00014052,2]
[352828383,1739352648774,-663.91,0.00014052,2]
[352828384,1739352648784,-540.03,0.00014052,2]
[352828385,1739352648794,-4408.0,0.00014052,2]
[352828386,1739352648804,-1527.94,0.00014052,2]
[352828387,1739352648818,-219.234385,0.00014052,2]
[352828388,1739352648829,-500.0,0.00014052,2]
[352828389,1739352648840,-219.234385,0.00014052,2]
[352828390,1739352648851,-151.0,0.00014052,2]
[352828391,1739352648861,-151.0,0.00014052,2]
[352828392,1739352648872,-14497.69,0.00014052,2]
[352828393,1739352648883,-817.76,0.00014052,2]
[352828394,1739352648893,-500.0,0.00014052,2]
[352828395,1739352648903,-151.0,0.00014052,2]
[352828396,1739352648915,-520.66,0.00014052,2]
[352828397,1739352648930,-6019.09,0.00014052,2]
[352828398,1739352648940,-652.9,0.00014052,2]
[352828399,1739352648950,-834.72,0.00014052,2]
[352828400,1739352648961,-151.0,0.00014052,2]
[352828401,1739352648973,-151.0,0.00014052,2]
[352828402,1739352648983,-354.9109976,0.0001411,2]
[352828403,1739352648993,-354.9109976,0.0001411,2]
[352828404,1739352649006,-354.9109976,0.0001411,2]
[352828405,1739352649018,-1000.0,0.00014116,2]
[352828406,1739352649030,-500.0,0.00014188,2]
[352828407,1739352649040,-738.13,0.00014188,2]
[352828408,1739352649051,-303.52,0.00014188,2]
[352828409,1739352649063,-730.78,0.00014188,2]
[352828410,1739352649073,-500.0,0.00014188,2]
[352828411,1739352649084,-621.84,0.00014188,2]
[352828412,1739352649094,-657.68,0.00014188,2]
[352828413,1739352649104,-500.0,0.00014189,2]
[352828414,1739352649114,-500.0,0.00014189,2]
[352828415,1739352649124,-670.67,0.00014189,2]
[352828416,1739352649134,-529.47,0.00014189,2]
[352828417,1739352649144,-500.0,0.00014189,2]
[352828418,1739352649154,-663.91,0.00014189,2]
[352828419,1739352649164,-540.03,0.00014189,2]
[352828420,1739352649174,-4408.0,0.00014189,2]
[352828421,1739352649184,-151.0,0.00014189,2]
[352828422,1739352649194,-1527.94,0.00014189,2]
[352828423,1739352649204,-500.0,0.00014189,2]
[352828424,1739352649214,-14497.69,0.00014189,2]
[352828425,1739352649225,-817.76,0.00014189,2]
[352828426,1739352649235,-500.0,0.00014189,2]
[352828427,1739352649245,-520.66,0.00014189,2]
[352828428,1739352649255,-6019.09,0.00014189,2]
[352828429,1739352649264,-652.9,0.00014189,2]
[352828430,1739352649274,-834.72,0.00014189,2]
[352828431,1739352649283,-151.0,0.000143,2]
[352828432,1739352649293,-151.0,0.000143,2]
[352828433,1739352649302,-151.0,0.000143,2]
[352828434,1739352649313,-5000.27585283,0.000143,2]
[352828435,1739352649323,-5000.0,0.000143,2]
[352828436,1739352649333,-5000.0,0.000143,2]
[352828437,1739352649342,-5000.0,0.000143,2]
[352828438,1739352649352,-5000.0,0.000143,2]
[352828439,1739352649363,-500.0,0.00014325,2]
[352828440,1739352649372,-738.13,0.00014325,2]
[352828441,1739352649382,-730.78,0.00014325,2]
[352828442,1739352649392,-398.18238847,0.00014325,2]
[352828443,1739352649401,-621.84,0.00014325,2]
[352828444,1739352649411,-657.68,0.00014325,2]
[352828445,1739352649420,-500.0,0.00014326,2]
[352828446,1739352649429,-500.0,0.00014326,2]
[352828447,1739352649439,-670.67,0.00014326,2]
[352828448,1739352649448,-529.47,0.00014326,2]
[352828449,1739352649458,-500.0,0.00014326,2]
[352828450,1739352649467,-663.91,0.00014326,2]
[352828451,1739352649476,-540.03,0.00014326,2]
[352828452,1739352649486,-4408.0,0.00014326,2]
[352828453,1739352649496,-1527.94,0.00014326,2]
[352828454,1739352649505,-500.0,0.00014326,2]
[352828455,1739352649515,-14497.69,0.00014326,2]
[352828456,1739352649525,-817.76,0.00014326,2]
[352828457,1739352649535,-500.0,0.00014326,2]
[352828458,1739352649544,-520.66,0.00014326,2]